[Event "*** Titled Tuesday Blitz"]
[Site "Chess.com"]
[Date "2020.04.07"]
[Round "2"]
[White "UCantHandleDenker"]
[Black "temus_galaktionov"]
[Result "0-1"]
[WhiteElo "2495"]
[BlackElo "2744"]
[TimeControl "180+1"]
[EndTime "13:19:24 PDT"]
[Termination "temus_galaktionov won on time"]

1. Nf3 {[%clk 0:03:00.9]} 1... c6 {[%clk 0:03:00.9]} 2. g3 {[%clk 0:03:00.2]}
2... g6 {[%clk 0:03:01.1]} 3. Bg2 {[%clk 0:03:00.7]} 3... Bg7 {[%clk 0:03:00.6]}
4. O-O {[%clk 0:03:01.1]} 4... d6 {[%clk 0:03:00.4]} 5. d3 {[%clk 0:03:01.4]}
5... Nd7 {[%clk 0:03:01]} 6. Nbd2 {[%clk 0:03:01.9]} 6... Ngf6 {[%clk
0:03:01.5]} 7. e4 {[%clk 0:03:02.2]} 7... O-O {[%clk 0:03:01.6]} 8. a4 {[%clk
0:03:01.2]} 8... e5 {[%clk 0:03:01.1]} 9. Nc4 {[%clk 0:03:00.5]} 9... Qc7 {[%clk
0:03:00.7]} 10. b3 {[%clk 0:02:59]} 10... d5 {[%clk 0:03:00.4]} 11. Ncd2 {[%clk
0:02:55.8]} 11... Re8 {[%clk 0:02:55.9]} 12. Qe2 {[%clk 0:02:54]} 12... Nc5
{[%clk 0:02:51.5]} 13. Bb2 {[%clk 0:02:51.2]} 13... dxe4 {[%clk 0:02:48.8]} 14.
dxe4 {[%clk 0:02:49.3]} 14... b6 {[%clk 0:02:46.8]} 15. b4 {[%clk 0:02:39.1]}
15... Ba6 {[%clk 0:02:45.6]} 16. c4 {[%clk 0:02:39]} 16... Ncd7 {[%clk
0:02:39.9]} 17. Rac1 {[%clk 0:02:32.1]} 17... Bf8 {[%clk 0:02:31.4]} 18. Bc3
{[%clk 0:02:20.4]} 18... Bb7 {[%clk 0:02:23.7]} 19. Nb3 {[%clk 0:01:50.1]} 19...
c5 {[%clk 0:02:16.9]} 20. bxc5 {[%clk 0:01:44.1]} 20... Nxc5 {[%clk 0:02:17.8]}
21. Nxc5 {[%clk 0:01:42.9]} 21... Bxc5 {[%clk 0:02:17.4]} 22. Nh4 {[%clk
0:01:36.3]} 22... a5 {[%clk 0:02:14.7]} 23. Rfe1 {[%clk 0:01:31.9]} 23... Bc6
{[%clk 0:02:13.7]} 24. Ra1 {[%clk 0:01:14.6]} 24... Rad8 {[%clk 0:02:10.5]} 25.
h3 {[%clk 0:01:09]} 25... Nh5 {[%clk 0:01:53.3]} 26. Kh2 {[%clk 0:01:03.9]}
26... Ng7 {[%clk 0:01:52.8]} 27. Nf3 {[%clk 0:01:00]} 27... f6 {[%clk
0:01:50.9]} 28. h4 {[%clk 0:00:50.5]} 28... Rd6 {[%clk 0:01:47.3]} 29. Bh3
{[%clk 0:00:49]} 29... Red8 {[%clk 0:01:46.7]} 30. Red1 {[%clk 0:00:27.1]} 30...
Rxd1 {[%clk 0:01:44.1]} 31. Rxd1 {[%clk 0:00:28]} 31... Bxa4 {[%clk 0:01:43]}
32. Rxd8+ {[%clk 0:00:26.8]} 32... Qxd8 {[%clk 0:01:43.9]} 33. Nxe5 {[%clk
0:00:24.1]} 33... fxe5 {[%clk 0:01:43]} 34. Bxe5 {[%clk 0:00:25]} 34... Qe7
{[%clk 0:01:32.1]} 35. Ba1 {[%clk 0:00:20.6]} 35... Bc6 {[%clk 0:01:21.9]} 36.
f3 {[%clk 0:00:18.5]} 36... Bd7 {[%clk 0:01:12.1]} 37. Bxd7 {[%clk 0:00:15.7]}
37... Qxd7 {[%clk 0:01:13]} 38. Qb2 {[%clk 0:00:15.9]} 38... a4 {[%clk
0:01:09.6]} 39. Qe5 {[%clk 0:00:13.6]} 39... a3 {[%clk 0:01:04.1]} 40. Qb8+
{[%clk 0:00:13.3]} 40... Bf8 {[%clk 0:01:03.5]} 41. Qxb6 {[%clk 0:00:11.3]}
41... Ne6 {[%clk 0:00:55.6]} 42. c5 {[%clk 0:00:04.5]} 42... Bxc5 {[%clk
0:00:52.4]} 43. Qb3 {[%clk 0:00:04.7]} 43... Kf7 {[%clk 0:00:43.8]} 44. f4
{[%clk 0:00:04.4]} 44... Qd2+ {[%clk 0:00:36.8]} 45. Kh3 {[%clk 0:00:04.8]}
45... Qe3 {[%clk 0:00:36.3]} 46. Qb7+ {[%clk 0:00:04]} 46... Be7 {[%clk
0:00:35.6]} 47. f5 {[%clk 0:00:03.2]} 47... Nf4+ {[%clk 0:00:30.6]} 0-1

[Event "*** Titled Tuesday Blitz"]
[Site "Chess.com"]
[Date "2020.04.07"]
[Round "2"]
[White "vaps"]
[Black "AquivaRubinstein"]
[Result "0-1"]
[WhiteElo "1983"]
[BlackElo "2401"]
[TimeControl "180+1"]
[EndTime "13:19:25 PDT"]
[Termination "AquivaRubinstein won by checkmate"]

1. Nf3 {[%clk 0:03:00.9]} 1... c5 {[%clk 0:02:59.2]} 2. c4 {[%clk 0:02:59.8]}
2... Nf6 {[%clk 0:02:58.4]} 3. Nc3 {[%clk 0:02:59.3]} 3... e6 {[%clk 0:02:57.1]}
4. g3 {[%clk 0:02:58.8]} 4... b6 {[%clk 0:02:56.8]} 5. Bg2 {[%clk 0:02:58]} 5...
Bb7 {[%clk 0:02:57.1]} 6. d4 {[%clk 0:02:56.2]} 6... cxd4 {[%clk 0:02:56.2]} 7.
Qxd4 {[%clk 0:02:55.6]} 7... Nc6 {[%clk 0:02:55.8]} 8. Qf4 {[%clk 0:02:54.8]}
8... Be7 {[%clk 0:02:53.8]} 9. O-O {[%clk 0:02:54.3]} 9... O-O {[%clk
0:02:53.7]} 10. Rd1 {[%clk 0:02:46.8]} 10... a6 {[%clk 0:02:44.9]} 11. b3 {[%clk
0:02:41.3]} 11... Qb8 {[%clk 0:02:34.8]} 12. Qxb8 {[%clk 0:02:32.3]} 12... Raxb8
{[%clk 0:02:29.4]} 13. Bf4 {[%clk 0:02:32]} 13... Rbc8 {[%clk 0:02:25.7]} 14.
Na4 {[%clk 0:02:14.5]} 14... Bd8 {[%clk 0:02:00.4]} 15. Ne5 {[%clk 0:01:21.9]}
15... Ba8 {[%clk 0:01:31.8]} 16. Nxd7 {[%clk 0:01:11.7]} 16... Nxd7 {[%clk
0:01:32]} 17. Rxd7 {[%clk 0:01:10]} 17... b5 {[%clk 0:01:09.5]} 18. cxb5 {[%clk
0:01:06.1]} 18... axb5 {[%clk 0:01:10.4]} 19. Nb2 {[%clk 0:00:58.6]} 19... Bf6
{[%clk 0:01:08]} 20. Rb1 {[%clk 0:00:55.4]} 20... Nb4 {[%clk 0:00:52.2]} 21.
Bxa8 {[%clk 0:00:52.3]} 21... Rxa8 {[%clk 0:00:50.4]} 22. Bd6 {[%clk 0:00:48.5]}
22... Rfc8 {[%clk 0:00:31.7]} 23. Bxb4 {[%clk 0:00:46.4]} 23... Rc2 {[%clk
0:00:32.1]} 24. Nd3 {[%clk 0:00:41.6]} 24... Raxa2 {[%clk 0:00:27.2]} 25. e3
{[%clk 0:00:37]} 25... h5 {[%clk 0:00:25]} 26. Rb7 {[%clk 0:00:32.3]} 26... e5
{[%clk 0:00:20.6]} 27. e4 {[%clk 0:00:25.6]} 27... Re2 {[%clk 0:00:17.1]} 28.
Rxb5 {[%clk 0:00:24]} 28... Rxe4 {[%clk 0:00:17.2]} 29. Ra5 {[%clk 0:00:22.1]}
29... Rc2 {[%clk 0:00:16]} 30. Rc1 {[%clk 0:00:19.9]} 30... Rce2 {[%clk
0:00:13.5]} 31. Bc5 {[%clk 0:00:17.3]} 31... Rd2 {[%clk 0:00:12.5]} 32. Ne1
{[%clk 0:00:13.9]} 32... Ree2 {[%clk 0:00:10.6]} 33. Be3 {[%clk 0:00:12.8]}
33... Rb2 {[%clk 0:00:10.4]} 34. Ra8+ {[%clk 0:00:12.2]} 34... Kh7 {[%clk
0:00:10.1]} 35. Rb8 {[%clk 0:00:12.6]} 35... e4 {[%clk 0:00:09.9]} 36. b4 {[%clk
0:00:11.6]} 36... h4 {[%clk 0:00:09.7]} 37. b5 {[%clk 0:00:06.5]} 37... h3
{[%clk 0:00:10]} 38. b6 {[%clk 0:00:05.5]} 38... Bc3 {[%clk 0:00:10.1]} 39. Rxc3
{[%clk 0:00:02.5]} 39... Rxe1# {[%clk 0:00:09.7]} 0-1

[Event "*** Titled Tuesday Blitz"]
[Site "Chess.com"]
[Date "2020.04.07"]
[Round "2"]
[White "Pudor"]
[Black "Abdimalik_Abdisalimov"]
[Result "0-1"]
[WhiteElo "2370"]
[BlackElo "2849"]
[TimeControl "180+1"]
[EndTime "13:19:26 PDT"]
[Termination "Abdimalik_Abdisalimov won by resignation"]

1. d4 {[%clk 0:03:00.9]} 1... Nf6 {[%clk 0:02:59.2]} 2. c4 {[%clk 0:02:59.3]}
2... e6 {[%clk 0:02:58.7]} 3. Nc3 {[%clk 0:02:59]} 3... Bb4 {[%clk 0:02:58.5]}
4. Nf3 {[%clk 0:02:58.6]} 4... b6 {[%clk 0:02:57.3]} 5. Qb3 {[%clk 0:02:57.7]}
5... c5 {[%clk 0:02:55.5]} 6. dxc5 {[%clk 0:02:58.6]} 6... bxc5 {[%clk
0:02:55.9]} 7. g3 {[%clk 0:02:56.9]} 7... Nc6 {[%clk 0:02:54.1]} 8. Bg2 {[%clk
0:02:55.7]} 8... Na5 {[%clk 0:02:54.3]} 9. Qa4 {[%clk 0:02:52]} 9... Nxc4 {[%clk
0:02:52.5]} 10. O-O {[%clk 0:02:50.3]} 10... Nb6 {[%clk 0:02:52.3]} 11. Qc2
{[%clk 0:02:46.5]} 11... O-O {[%clk 0:02:52.4]} 12. e4 {[%clk 0:02:45.2]} 12...
Bxc3 {[%clk 0:02:51.4]} 13. bxc3 {[%clk 0:02:43.6]} 13... Bb7 {[%clk 0:02:50.3]}
14. e5 {[%clk 0:02:33.1]} 14... Ng4 {[%clk 0:02:49.8]} 15. Ng5 {[%clk
0:02:30.1]} 15... g6 {[%clk 0:02:32.4]} 16. Bxb7 {[%clk 0:02:27.8]} 16... Rb8
{[%clk 0:02:32.7]} 17. Bg2 {[%clk 0:02:24]} 17... Nxe5 {[%clk 0:02:32.9]} 18.
Bf4 {[%clk 0:02:22.4]} 18... f6 {[%clk 0:02:32.9]} 19. Nf3 {[%clk 0:02:15.6]}
19... d6 {[%clk 0:02:30.1]} 20. Rfd1 {[%clk 0:02:11]} 20... Qe7 {[%clk
0:02:29.7]} 21. Nxe5 {[%clk 0:02:02.1]} 21... fxe5 {[%clk 0:02:30.6]} 22. Bh6
{[%clk 0:01:52.5]} 22... Rfd8 {[%clk 0:02:24.4]} 23. c4 {[%clk 0:01:50.3]} 23...
d5 {[%clk 0:02:11.7]} 24. h4 {[%clk 0:01:45.5]} 24... Qd6 {[%clk 0:02:06.1]} 25.
h5 {[%clk 0:01:23.9]} 25... Kf7 {[%clk 0:02:02.1]} 26. Qe2 {[%clk 0:01:14.8]}
26... Nxc4 {[%clk 0:01:58.2]} 27. Qf3+ {[%clk 0:01:12.9]} 27... Ke8 {[%clk
0:01:56.3]} 28. hxg6 {[%clk 0:01:00.8]} 28... hxg6 {[%clk 0:01:57.2]} 29. Qf6
{[%clk 0:01:01]} 29... Qe7 {[%clk 0:01:57.5]} 30. Qxg6+ {[%clk 0:00:53.4]} 30...
Qf7 {[%clk 0:01:57.6]} 31. Qg4 {[%clk 0:00:49.5]} 31... Rb2 {[%clk 0:01:48.1]}
32. Rf1 {[%clk 0:00:30]} 32... Nd2 {[%clk 0:01:47.3]} 33. Bxd2 {[%clk
0:00:26.6]} 33... Rxd2 {[%clk 0:01:48.2]} 34. Bh3 {[%clk 0:00:23.5]} 34... c4
{[%clk 0:01:41.3]} 35. Qxe6+ {[%clk 0:00:18]} 35... Qxe6 {[%clk 0:01:42.2]} 36.
Bxe6 {[%clk 0:00:18.4]} 36... Ke7 {[%clk 0:01:43.1]} 37. Bg4 {[%clk 0:00:18.2]}
37... c3 {[%clk 0:01:43.3]} 38. Rad1 {[%clk 0:00:17.4]} 38... Rxa2 {[%clk
0:01:42.6]} 39. Bf3 {[%clk 0:00:17.3]} 39... d4 {[%clk 0:01:40.9]} 40. Be4
{[%clk 0:00:16.7]} 40... a5 {[%clk 0:01:41.2]} 41. Ra1 {[%clk 0:00:16.5]} 41...
Re2 {[%clk 0:01:36]} 42. Bd3 {[%clk 0:00:16]} 42... Rd2 {[%clk 0:01:36.2]} 43.
Rfd1 {[%clk 0:00:15.6]} 43... Rxd1+ {[%clk 0:01:35]} 44. Rxd1 {[%clk 0:00:16.5]}
44... a4 {[%clk 0:01:35.9]} 45. Ra1 {[%clk 0:00:16]} 45... Ra8 {[%clk
0:01:35.2]} 46. Kf1 {[%clk 0:00:15.9]} 46... Kd6 {[%clk 0:01:35.5]} 47. Ke1
{[%clk 0:00:15.8]} 47... a3 {[%clk 0:01:36]} 48. Ra2 {[%clk 0:00:15.4]} 48...
Kc5 {[%clk 0:01:34.4]} 49. Kd1 {[%clk 0:00:14.1]} 49... Kb4 {[%clk 0:01:34.8]}
50. Bc2 {[%clk 0:00:12.5]} 50... Re8 {[%clk 0:01:24.9]} 51. f3 {[%clk
0:00:12.1]} 51... Rh8 {[%clk 0:01:24]} 52. g4 {[%clk 0:00:11]} 52... Rh1+ {[%clk
0:01:19.5]} 53. Ke2 {[%clk 0:00:10.5]} 53... Rh2+ {[%clk 0:01:20.1]} 54. Kd3
{[%clk 0:00:09.8]} 54... Rd2+ {[%clk 0:01:19.8]} 55. Ke4 {[%clk 0:00:09.7]}
55... d3 {[%clk 0:01:20.7]} 56. g5 {[%clk 0:00:05.5]} 56... dxc2 {[%clk
0:01:18.9]} 57. g6 {[%clk 0:00:05.6]} 57... c1=Q {[%clk 0:01:18.8]} 58. g7
{[%clk 0:00:05.8]} 58... Qe1+ {[%clk 0:01:17.5]} 59. Kf5 {[%clk 0:00:05.5]}
59... Qg3 {[%clk 0:01:17.7]} 0-1

[Event "*** Titled Tuesday Blitz"]
[Site "Chess.com"]
[Date "2020.04.07"]
[Round "2"]
[White "freshfoodcompany"]
[Black "djano"]
[Result "0-1"]
[WhiteElo "2240"]
[BlackElo "2480"]
[TimeControl "180+1"]
[EndTime "13:19:26 PDT"]
[Termination "djano won by resignation"]

1. d4 {[%clk 0:03:00.9]} 1... Nf6 {[%clk 0:03:00]} 2. c4 {[%clk 0:03:00.3]} 2...
e6 {[%clk 0:03:00.3]} 3. Nc3 {[%clk 0:03:00.4]} 3... Bb4 {[%clk 0:03:00]} 4. e3
{[%clk 0:03:00.6]} 4... O-O {[%clk 0:02:59.2]} 5. Bd3 {[%clk 0:03:00.7]} 5... c5
{[%clk 0:02:59.3]} 6. Ne2 {[%clk 0:02:59]} 6... d5 {[%clk 0:02:59.2]} 7. O-O
{[%clk 0:02:56]} 7... cxd4 {[%clk 0:02:58.4]} 8. exd4 {[%clk 0:02:54.6]} 8...
dxc4 {[%clk 0:02:58.6]} 9. Bxc4 {[%clk 0:02:54.4]} 9... b6 {[%clk 0:02:59.1]}
10. d5 {[%clk 0:02:51.6]} 10... e5 {[%clk 0:02:45.7]} 11. Bg5 {[%clk 0:02:48.1]}
11... Nbd7 {[%clk 0:02:42.1]} 12. Ne4 {[%clk 0:02:41.1]} 12... h6 {[%clk
0:02:34.8]} 13. Nxf6+ {[%clk 0:02:34.7]} 13... Nxf6 {[%clk 0:02:33.7]} 14. Bh4
{[%clk 0:02:33.9]} 14... Bb7 {[%clk 0:02:27.9]} 15. Nc3 {[%clk 0:02:32.1]} 15...
Rc8 {[%clk 0:02:15.5]} 16. Qb3 {[%clk 0:02:21.8]} 16... Bxc3 {[%clk 0:02:11.9]}
17. bxc3 {[%clk 0:02:15.4]} 17... Bxd5 {[%clk 0:01:57.8]} 18. Bxf6 {[%clk
0:01:59.3]} 18... Bxc4 {[%clk 0:01:57.6]} 19. Bxd8 {[%clk 0:01:57.5]} 19... Bxb3
{[%clk 0:01:57.7]} 20. axb3 {[%clk 0:01:52.9]} 20... Rfxd8 {[%clk 0:01:57.1]}
21. c4 {[%clk 0:01:48.9]} 21... a5 {[%clk 0:01:56.3]} 22. Rfd1 {[%clk
0:01:47.6]} 22... f6 {[%clk 0:01:53.4]} 23. f3 {[%clk 0:01:45.2]} 23... Kf7
{[%clk 0:01:53.5]} 24. Kf2 {[%clk 0:01:45.1]} 24... Ke6 {[%clk 0:01:53.9]} 25.
Ke3 {[%clk 0:01:44.8]} 25... Rd6 {[%clk 0:01:51.6]} 26. Rxd6+ {[%clk 0:01:43.3]}
26... Kxd6 {[%clk 0:01:52.5]} 27. Rd1+ {[%clk 0:01:43.1]} 27... Kc5 {[%clk
0:01:50]} 28. Rd5+ {[%clk 0:01:42.3]} 28... Kc6 {[%clk 0:01:47.9]} 29. Ke4
{[%clk 0:01:39.8]} 29... g6 {[%clk 0:01:42.9]} 30. h4 {[%clk 0:01:37.7]} 30...
Re8 {[%clk 0:01:38.6]} 31. g4 {[%clk 0:01:31.9]} 31... h5 {[%clk 0:01:38.7]} 32.
gxh5 {[%clk 0:01:26.7]} 32... f5+ {[%clk 0:01:38.7]} 33. Ke3 {[%clk 0:01:25.4]}
33... gxh5 {[%clk 0:01:39.6]} 34. f4 {[%clk 0:01:21]} 34... exf4+ {[%clk
0:01:35.6]} 35. Kxf4 {[%clk 0:01:20.6]} 35... Re4+ {[%clk 0:01:35.5]} 36. Kxf5
{[%clk 0:01:20.1]} 36... Rxh4 {[%clk 0:01:34.9]} 37. Ke5 {[%clk 0:01:15.8]}
37... Rh3 {[%clk 0:01:32.5]} 38. Rd6+ {[%clk 0:01:14.4]} 38... Kc5 {[%clk
0:01:27.8]} 39. Rd5+ {[%clk 0:01:14]} 39... Kc6 {[%clk 0:01:28]} 40. Rd6+ {[%clk
0:01:13.9]} 40... Kc7 {[%clk 0:01:28.4]} 41. Rh6 {[%clk 0:01:07.7]} 41... Rxb3
{[%clk 0:01:20.7]} 42. Rxh5 {[%clk 0:01:07]} 42... Rd3 {[%clk 0:01:20.8]} 43.
Ke4 {[%clk 0:01:02.3]} 43... Rd8 {[%clk 0:01:19.1]} 44. Ke3 {[%clk 0:00:52.7]}
44... Kc6 {[%clk 0:01:17.8]} 45. Ke4 {[%clk 0:00:48.8]} 45... a4 {[%clk
0:01:16.7]} 46. Ke3 {[%clk 0:00:42.2]} 46... a3 {[%clk 0:01:16.1]} 47. Ke2
{[%clk 0:00:34.6]} 47... a2 {[%clk 0:01:07.7]} 48. Rh1 {[%clk 0:00:31.7]} 48...
Ra8 {[%clk 0:01:03.5]} 49. Ra1 {[%clk 0:00:30.9]} 49... Kc5 {[%clk 0:01:03]} 50.
Kd3 {[%clk 0:00:30.1]} 50... Kb4 {[%clk 0:00:58.5]} 51. Kc2 {[%clk 0:00:27.8]}
51... Kxc4 {[%clk 0:00:57.6]} 52. Kb2 {[%clk 0:00:27.9]} 52... Kb4 {[%clk
0:00:57.9]} 53. Kc2 {[%clk 0:00:15.4]} 53... Ka3 {[%clk 0:00:56.1]} 54. Kc3
{[%clk 0:00:15.2]} 54... Rc8+ {[%clk 0:00:55.6]} 0-1

[Event "*** Titled Tuesday Blitz"]
[Site "Chess.com"]
[Date "2020.04.07"]
[Round "2"]
[White "Colombiano07"]
[Black "Stormeman100100"]
[Result "0-1"]
[WhiteElo "2238"]
[BlackElo "2477"]
[TimeControl "180+1"]
[EndTime "13:19:26 PDT"]
[Termination "Stormeman100100 won on time"]

1. Nf3 {[%clk 0:03:00.9]} 1... d5 {[%clk 0:02:58.3]} 2. b3 {[%clk 0:03:00.8]}
2... c5 {[%clk 0:02:56.7]} 3. e3 {[%clk 0:03:01.1]} 3... Nc6 {[%clk 0:02:55.5]}
4. Bb5 {[%clk 0:03:00.9]} 4... Bd7 {[%clk 0:02:54.8]} 5. Bb2 {[%clk 0:03:00.9]}
5... Nf6 {[%clk 0:02:53.5]} 6. O-O {[%clk 0:03:00.7]} 6... e6 {[%clk 0:02:53.4]}
7. d3 {[%clk 0:03:00.8]} 7... Be7 {[%clk 0:02:47.6]} 8. Nbd2 {[%clk 0:03:00.3]}
8... O-O {[%clk 0:02:46.3]} 9. Bxc6 {[%clk 0:03:00.3]} 9... Bxc6 {[%clk
0:02:46.3]} 10. Ne5 {[%clk 0:03:01.2]} 10... Rc8 {[%clk 0:02:44.5]} 11. f4
{[%clk 0:03:00.8]} 11... Be8 {[%clk 0:02:43.5]} 12. Rf3 {[%clk 0:02:57.1]} 12...
Nd7 {[%clk 0:02:32.8]} 13. Rg3 {[%clk 0:02:48.3]} 13... Nxe5 {[%clk 0:02:32.3]}
14. Bxe5 {[%clk 0:02:49.2]} 14... f6 {[%clk 0:02:31.6]} 15. Bb2 {[%clk
0:02:48.4]} 15... Bg6 {[%clk 0:02:28.6]} 16. Qf3 {[%clk 0:02:41]} 16... Bd6
{[%clk 0:02:20.8]} 17. Rf1 {[%clk 0:02:01]} 17... Qe7 {[%clk 0:02:18.2]} 18. e4
{[%clk 0:01:41.9]} 18... dxe4 {[%clk 0:02:01.7]} 19. dxe4 {[%clk 0:01:17.6]}
19... e5 {[%clk 0:01:55.1]} 20. f5 {[%clk 0:01:14.2]} 20... Be8 {[%clk
0:01:54.6]} 21. Nc4 {[%clk 0:01:13.5]} 21... Bc6 {[%clk 0:01:54.6]} 22. Nxd6
{[%clk 0:01:09.9]} 22... Qxd6 {[%clk 0:01:53.6]} 23. Rd1 {[%clk 0:01:10.5]}
23... Qe7 {[%clk 0:01:53.2]} 24. Qe2 {[%clk 0:01:08.2]} 24... Rfd8 {[%clk
0:01:50.5]} 25. Rgd3 {[%clk 0:01:00.5]} 25... b6 {[%clk 0:01:35.3]} 26. Qd2
{[%clk 0:00:42.4]} 26... Rxd3 {[%clk 0:01:23.7]} 27. Qxd3 {[%clk 0:00:42.2]}
27... Qb7 {[%clk 0:01:21.9]} 28. Re1 {[%clk 0:00:36.2]} 28... Qc7 {[%clk
0:01:19.5]} 29. Qc4+ {[%clk 0:00:33.6]} 29... Kh8 {[%clk 0:01:18.7]} 30. g4
{[%clk 0:00:22.5]} 30... Rd8 {[%clk 0:01:15.6]} 31. g5 {[%clk 0:00:20.5]} 31...
Qb7 {[%clk 0:01:13.5]} 32. h4 {[%clk 0:00:15.1]} 32... Qe7 {[%clk 0:01:10.9]}
33. Qe6 {[%clk 0:00:10.2]} 33... Qxe6 {[%clk 0:01:04.7]} 34. fxe6 {[%clk
0:00:11.1]} 34... Re8 {[%clk 0:01:04.7]} 35. gxf6 {[%clk 0:00:10.3]} 35... gxf6
{[%clk 0:01:04.4]} 36. Kf2 {[%clk 0:00:06.8]} 36... Rxe6 {[%clk 0:01:04.4]} 37.
Ke3 {[%clk 0:00:07.4]} 37... Re8 {[%clk 0:01:02.6]} 38. Rd1 {[%clk 0:00:07.6]}
38... Re6 {[%clk 0:00:50.7]} 39. Rd8+ {[%clk 0:00:06.8]} 39... Kg7 {[%clk
0:00:50.8]} 40. Rc8 {[%clk 0:00:06.3]} 40... Kg6 {[%clk 0:00:47.4]} 41. Rc7
{[%clk 0:00:05.3]} 41... a5 {[%clk 0:00:34.5]} 42. Bc3 {[%clk 0:00:03.9]} 42...
h6 {[%clk 0:00:33.6]} 43. Be1 {[%clk 0:00:02.1]} 43... f5 {[%clk 0:00:29.4]} 44.
exf5+ {[%clk 0:00:01.9]} 44... Kxf5 {[%clk 0:00:30.3]} 45. Bd2 {[%clk
0:00:02.4]} 45... Kg4 {[%clk 0:00:29.3]} 0-1

[Event "*** Titled Tuesday Blitz"]
[Site "Chess.com"]
[Date "2020.04.07"]
[Round "2"]
[White "thedjoker98"]
[Black "kai_nov"]
[Result "1-0"]
[WhiteElo "2454"]
[BlackElo "2197"]
[TimeControl "180+1"]
[EndTime "13:19:26 PDT"]
[Termination "thedjoker98 won by checkmate"]

1. d4 {[%clk 0:03:00.9]} 1... d5 {[%clk 0:02:59.5]} 2. c4 {[%clk 0:03:01.2]}
2... e6 {[%clk 0:02:59.4]} 3. Nc3 {[%clk 0:03:01.2]} 3... c6 {[%clk 0:02:59.3]}
4. e4 {[%clk 0:02:58.7]} 4... dxe4 {[%clk 0:02:53.6]} 5. Nxe4 {[%clk 0:02:59.6]}
5... Bb4+ {[%clk 0:02:53]} 6. Nc3 {[%clk 0:02:58.1]} 6... Nf6 {[%clk 0:02:50.6]}
7. a3 {[%clk 0:02:53.5]} 7... Bxc3+ {[%clk 0:02:46.5]} 8. bxc3 {[%clk
0:02:54.4]} 8... Qa5 {[%clk 0:02:40.9]} 9. Qc2 {[%clk 0:02:49.1]} 9... e5 {[%clk
0:02:38.6]} 10. Bd2 {[%clk 0:02:45]} 10... O-O {[%clk 0:02:36.2]} 11. Nf3 {[%clk
0:02:37.6]} 11... Nbd7 {[%clk 0:02:35.4]} 12. Be2 {[%clk 0:02:35.2]} 12... e4
{[%clk 0:02:33.1]} 13. Ng5 {[%clk 0:02:32.9]} 13... h6 {[%clk 0:02:30.7]} 14.
Nxe4 {[%clk 0:02:31.8]} 14... Nxe4 {[%clk 0:02:18.9]} 15. Qxe4 {[%clk
0:02:32.7]} 15... Nf6 {[%clk 0:02:19]} 16. Qc2 {[%clk 0:02:25.1]} 16... Re8
{[%clk 0:02:18.6]} 17. Qd1 {[%clk 0:02:18.8]} 17... Ne4 {[%clk 0:02:04.2]} 18.
Rc1 {[%clk 0:02:16.5]} 18... Qxa3 {[%clk 0:01:45.4]} 19. O-O {[%clk 0:02:14.5]}
19... Bf5 {[%clk 0:01:41.9]} 20. Bd3 {[%clk 0:01:55.3]} 20... Nxf2 {[%clk
0:01:29.4]} 21. Rxf2 {[%clk 0:01:55]} 21... Bxd3 {[%clk 0:01:29.5]} 22. Ra1
{[%clk 0:01:35.9]} 22... Qe7 {[%clk 0:01:21]} 23. Bxh6 {[%clk 0:01:27.8]} 23...
Be2 {[%clk 0:01:09.6]} 24. Qd2 {[%clk 0:01:27.8]} 24... gxh6 {[%clk 0:01:05.2]}
25. Re1 {[%clk 0:01:23.1]} 25... Qg5 {[%clk 0:00:59.5]} 26. Qxg5+ {[%clk
0:01:18.8]} 26... hxg5 {[%clk 0:00:59.5]} 27. Rfxe2 {[%clk 0:01:19.7]} 27... Kf8
{[%clk 0:00:55.9]} 28. Rxe8+ {[%clk 0:01:17]} 28... Rxe8 {[%clk 0:00:55.7]} 29.
Ra1 {[%clk 0:01:17.9]} 29... a6 {[%clk 0:00:55.3]} 30. Kf2 {[%clk 0:01:18.4]}
30... f5 {[%clk 0:00:48.6]} 31. Ra5 {[%clk 0:01:14.7]} 31... Kg7 {[%clk
0:00:42.9]} 32. Rxf5 {[%clk 0:01:13.3]} 32... Rf8 {[%clk 0:00:39]} 33. Rxf8
{[%clk 0:01:13.2]} 33... Kxf8 {[%clk 0:00:39.5]} 34. Ke3 {[%clk 0:01:11.1]}
34... Ke7 {[%clk 0:00:31.3]} 35. h3 {[%clk 0:01:09.3]} 35... Ke6 {[%clk
0:00:28.5]} 36. g3 {[%clk 0:00:52]} 36... Kf5 {[%clk 0:00:28.2]} 37. h4 {[%clk
0:00:37]} 37... gxh4 {[%clk 0:00:27.1]} 38. gxh4 {[%clk 0:00:37.9]} 38... b5
{[%clk 0:00:19.1]} 39. d5 {[%clk 0:00:38.1]} 39... cxd5 {[%clk 0:00:12]} 40.
cxd5 {[%clk 0:00:39]} 40... a5 {[%clk 0:00:08.4]} 41. h5 {[%clk 0:00:36.7]}
41... a4 {[%clk 0:00:08.1]} 42. Kd2 {[%clk 0:00:36.8]} 42... Ke5 {[%clk
0:00:06]} 43. h6 {[%clk 0:00:36.7]} 43... Kxd5 {[%clk 0:00:06.3]} 44. h7 {[%clk
0:00:37]} 44... Kc4 {[%clk 0:00:06.7]} 45. h8=Q {[%clk 0:00:37.2]} 45... Kb3
{[%clk 0:00:06.9]} 46. Qd4 {[%clk 0:00:36.8]} 46... a3 {[%clk 0:00:06.6]} 47.
Qb4+ {[%clk 0:00:36.8]} 47... Ka2 {[%clk 0:00:07]} 48. Kc2 {[%clk 0:00:36.6]}
48... Ka1 {[%clk 0:00:06.7]} 49. Qxa3# {[%clk 0:00:36.8]} 1-0